bitfinex-derivatives/quotes_BTCF0:USTF0_20250309
["timestamp","ask_amount","ask_price","bid_price","bid_amount"]
[1741554248548,0.06263,83087.0,83083.0,0.1203697]
[1741554248744,0.450139,83085.0,83084.0,0.1203697]
[1741554249055,0.450139,83085.0,83084.0,0.2278697]
[1741554249745,0.32977,83085.0,83084.0,0.2278697]
[1741554250147,0.32977,83085.0,83084.0,0.3364697]
[1741554250352,0.4501382,83085.0,83084.0,0.3364697]
[1741554250749,0.25228,83085.0,83084.0,0.3364697]
[1741554250951,0.3726482,83085.0,83084.0,0.3364697]
[1741554251252,0.3726482,83085.0,83084.0,0.34843701]
[1741554251454,0.3726482,83085.0,83072.0,0.4129931]
[1741554251455,0.060192,83075.0,83072.0,0.4129931]
[1741554251653,0.1805762,83075.0,83074.0,0.1805681]
[1741554251856,0.060189,83079.0,83076.0,0.1203784]
[1741554252056,0.060189,83079.0,83078.0,0.1203784]
[1741554253050,0.1203751,83081.0,83080.0,0.120374]
[1741554254751,0.1203769,83079.0,83078.0,0.001]
[1741554254945,0.1203769,83079.0,83076.0,0.13245432]
[1741554254946,0.1203798,83077.0,83076.0,0.13245432]
[1741554255261,0.1203798,83077.0,83076.0,0.2361813]
[1741554256057,0.1203798,83077.0,83076.0,0.24791281]
[1741554256766,0.1203798,83077.0,83075.0,0.1504718]
[1741554256767,0.1203813,83076.0,83075.0,0.03009]
[1741554258664,0.1203813,83076.0,83075.0,0.0102784]
[1741554258864,0.3628,83077.0,83065.0,0.06200433]
[1741554258865,0.1203958,83066.0,83065.0,0.00180573]
[1741554259063,0.4811958,83066.0,83065.0,0.00180573]
[1741554260468,0.1204103,83057.0,83056.0,0.1204095]
[1741554260670,0.1204103,83057.0,83020.0,0.3480354]
[1741554260671,0.1204248,83046.0,83045.0,0.08492]
[1741554260874,0.1204248,83046.0,83045.0,0.2053462]
[1741554261069,0.1204248,83046.0,83033.0,0.00917926]
[1741554261070,0.1204277,83044.0,83038.0,0.1204353]
[1741554261273,0.1204306,83042.0,83041.0,0.481232]
[1741554261876,0.1204306,83042.0,83041.0,0.3608]
[1741554262173,0.1141,83048.0,83035.0,0.12574759]
[1741554262378,0.1736581,83038.0,83037.0,0.1806465]
[1741554262562,0.1736581,83038.0,83037.0,0.0602169]
[1741554263274,0.1204494,83029.0,83023.0,0.1143]
[1741554263478,0.1204494,83029.0,83028.0,0.5679772]
[1741554263662,0.1144494,83029.0,83028.0,0.58012239]
[1741554264067,0.1144494,83029.0,83028.0,0.4830572]
[1741554264275,0.1144494,83029.0,83028.0,0.3626063]
[1741554264474,0.2286494,83029.0,83028.0,0.3626063]
[1741554264978,0.2286494,83029.0,83028.0,0.4830572]
[1741554265770,0.2286494,83029.0,83028.0,0.4620572]
[1741554265965,0.3396494,83029.0,83028.0,0.4620572]
[1741554266873,0.3396494,83029.0,83028.0,0.1222572]
[1741554267276,0.3396494,83029.0,83028.0,0.2365572]
[1741554269575,0.2252,83029.0,83028.0,0.2365572]
[1741554269778,0.3456494,83029.0,83028.0,0.2365572]
[1741554270174,0.3456494,83029.0,83028.0,0.0018063]
[1741554270373,0.4555494,83029.0,83028.0,0.0018063]
[1741554271583,0.1204523,83027.0,83026.0,0.03011]
[1741554271780,0.1204683,83016.0,83015.0,0.4812683]
[1741554272082,0.1741275,83026.0,83022.0,0.1806837]
[1741554272381,0.1806875,83023.0,83022.0,0.120457]
[1741554272774,0.1115,83026.0,83025.0,0.1204552]
[1741554273571,0.1115,83026.0,83025.0,0.3353552]
[1741554274674,0.1115,83026.0,83025.0,0.34725778]
[1741554275385,0.2319538,83026.0,83025.0,0.34725778]
[1741554275882,0.2319538,83026.0,83025.0,0.1204552]
[1741554276583,0.2319538,83026.0,83025.0,0.226]
[1741554276785,0.2319538,83026.0,83025.0,0.1169]
[1741554276986,0.1204567,83024.0,83021.0,0.1091]
[1741554277183,0.1204596,83022.0,83021.0,0.1091]
[1741554277382,0.1204596,83022.0,83019.0,0.1204628]
[1741554277583,0.1204625,83020.0,83019.0,0.1204622]
[1741554279591,0.0602319,83019.0,83016.0,0.03011]
[1741554279779,0.1204668,83017.0,83016.0,0.3850456]
[1741554280687,0.1204668,83017.0,83016.0,0.2645778]
[1741554281283,0.1204668,83017.0,83016.0,0.03011]
[1741554281481,0.59826874,83017.0,83016.0,0.03011]
[1741554281691,0.59826874,83017.0,83016.0,0.1505783]
[1741554281987,0.59826874,83017.0,83016.0,0.08275065]
[1741554282188,0.59826874,83017.0,83016.0,0.19675065]
[1741554282389,0.23746874,83017.0,83016.0,0.19675065]
[1741554283587,0.23746874,83017.0,83016.0,0.2344683]
[1741554283983,0.23746874,83017.0,83016.0,0.114]
[1741554284380,0.23746874,83017.0,83016.0,0.2344683]
[1741554284893,0.23746874,83017.0,83016.0,0.16664041]
[1741554285191,0.1112,83018.0,83017.0,0.1204668]
[1741554285387,0.2316654,83018.0,83017.0,0.1204668]
[1741554286289,0.36144,83021.0,83015.0,0.1686494]
[1741554286481,0.03011,83019.0,83018.0,0.1806981]
[1741554287294,0.03011,83019.0,83018.0,0.192961]
[1741554288188,0.1505739,83019.0,83018.0,0.309361]
[1741554288385,0.03011,83019.0,83018.0,0.309361]
[1741554290695,0.03011,83019.0,83018.0,0.394321]
[1741554290898,0.1505739,83019.0,83018.0,0.394321]
[1741554291895,0.1505739,83019.0,83018.0,0.506621]
[1741554292094,0.03011,83019.0,83018.0,0.506621]
[1741554294791,0.13761,83019.0,83018.0,0.506621]
[1741554296000,0.13761,83019.0,83018.0,0.608321]
[1741554297395,0.13761,83019.0,83018.0,0.969121]
[1741554298299,0.13761,83019.0,83018.0,0.608321]
[1741554298702,0.13761,83019.0,83018.0,0.969121]
[1741554300199,0.3654739,83019.0,83015.0,0.07829]
[1741554300392,0.1204683,83016.0,83015.0,0.07829]
[1741554300595,0.1204683,83016.0,83015.0,0.02523078]
[1741554300996,0.5307734,83018.0,83004.0,0.0602422]
[1741554300997,0.0602384,83011.0,83004.0,0.0602422]
[1741554301196,0.1204886,83002.0,83001.0,0.08672697]
[1741554301396,0.1807223,83009.0,83008.0,0.1204799]
[1741554301906,0.2882223,83009.0,83008.0,0.1204799]
[1741554302293,0.1677392,83009.0,83008.0,0.1204799]
[1741554303210,0.0602406,83008.0,83001.0,0.00180697]
[1741554303498,0.1204901,83001.0,83000.0,0.10124]
[1741554303801,0.1204901,83001.0,83000.0,0.1]
[1741554303995,0.2202901,83001.0,83000.0,0.1]
[1741554305198,0.2202901,83001.0,83000.0,0.03227075]
[1741554305789,0.2202901,83001.0,82983.0,0.70685103]
[1741554305790,0.1087815,83001.0,82983.0,0.64659313]
[1741554305990,0.0602529,82991.0,82988.0,0.0602538]
[1741554306195,0.0998,82990.0,82989.0,0.1205075]
[1741554306397,0.0998,82990.0,82989.0,0.6932075]
[1741554307702,0.0776,82991.0,82989.0,0.6932075]
[1741554308004,0.0776,82991.0,82990.0,0.120506]
[1741554308208,0.1981046,82991.0,82990.0,0.120506]
[1741554308393,0.1981046,82991.0,82990.0,0.330106]
[1741554308794,0.0776,82991.0,82990.0,0.330106]
[1741554309004,0.1981046,82991.0,82990.0,0.330106]
[1741554309890,0.2985046,82991.0,82990.0,0.330106]
[1741554310297,0.2985046,82991.0,82990.0,0.2096]
[1741554310496,0.2985046,82991.0,82990.0,0.330106]
[1741554311306,0.2985046,82991.0,82990.0,0.1088]
[1741554311505,0.120506,82990.0,82986.0,0.08492]
[1741554311700,0.1205104,82987.0,82986.0,0.08492]
[1741554312008,0.1205162,82983.0,82982.0,0.2225177]
[1741554312305,0.1205162,82983.0,82982.0,0.3074377]
[1741554312602,0.102,82984.0,82982.0,0.3074377]
[1741554312802,0.102,82984.0,82983.0,0.1205162]
[1741554313005,0.0776,82991.0,82990.0,0.120506]
[1741554313191,0.0776,82991.0,82990.0,0.481306]
[1741554313192,0.1847,82991.0,82990.0,0.481306]
[1741554313903,0.1847,82991.0,82990.0,0.686606]
[1741554314992,0.1847,82991.0,82990.0,0.771526]
[1741554315294,0.0776,82991.0,82990.0,0.771526]
[1741554317498,0.1796,82991.0,82990.0,0.771526]
[1741554317899,0.29,82991.0,82990.0,0.771526]
[1741554319310,0.4105046,82991.0,82990.0,0.771526]
[1741554319808,0.29,82991.0,82990.0,0.771526]
[1741554320802,0.4105046,82991.0,82990.0,0.668226]
[1741554321910,0.4105046,82991.0,82990.0,0.583306]
[1741554322106,0.4105046,82991.0,82989.0,0.1205067]
[1741554322313,0.1205075,82989.0,82988.0,0.170526]
[1741554323011,0.1205075,82989.0,82988.0,0.531326]
[1741554327108,0.3200075,82989.0,82988.0,0.531326]
[1741554330316,0.3200075,82989.0,82988.0,0.05002]
[1741554331020,0.3200075,82989.0,82988.0,0.01629218]
[1741554331516,0.1205293,82974.0,82973.0,0.00180766]
[1741554331711,0.1205409,82966.0,82965.0,0.00124]
[1741554331911,0.0602696,82968.0,82957.0,0.1205475]
[1741554331912,0.120554,82958.0,82957.0,0.1205475]
[1741554332221,0.1205554,82956.0,82955.0,0.3608]
[1741554332419,0.1205554,82956.0,82955.0,0.4813569]
[1741554332810,0.3188554,82956.0,82955.0,0.5775569]
[1741554334314,0.3188554,82956.0,82955.0,0.2167569]
[1741554334506,0.3188554,82956.0,82955.0,0.0962]
[1741554334711,0.3188554,82956.0,82955.0,0.2167569]
[1741554336614,0.1983,82956.0,82955.0,0.2167569]
[1741554336915,0.1983,82956.0,82955.0,0.3111569]
[1741554337114,0.03013,82957.0,82956.0,0.1205554]
[1741554337318,0.03013,82957.0,82956.0,0.3991754]
[1741554339512,0.11097194,82967.0,82966.0,0.1205409]
[1741554339713,0.09668653,82967.0,82966.0,0.2054609]
[1741554340213,0.09668653,82967.0,82966.0,0.3960609]
[1741554340526,0.2133394,82969.0,82968.0,0.120538]
[1741554340714,0.2133394,82969.0,82968.0,0.058448]
[1741554340913,0.3157394,82969.0,82968.0,0.058448]
[1741554342018,0.1952,82969.0,82966.0,0.27676]
[1741554342219,0.1205525,82958.0,82957.0,0.0602764]
[1741554342417,0.1205525,82958.0,82957.0,0.1451964]
[1741554343125,0.3159525,82958.0,82957.0,0.1451964]
[1741554343310,0.3159525,82958.0,82957.0,0.08492]
[1741554343912,0.3159525,82958.0,82957.0,0.205474]
[1741554344417,0.1954,82958.0,82957.0,0.205474]
[1741554344920,0.1954,82958.0,82957.0,0.403574]
[1741554345313,0.0936,82958.0,82957.0,0.403574]
[1741554345518,0.0616692,82958.0,82957.0,0.403574]
[1741554345720,0.00962,82961.0,82960.0,0.1205496]
[1741554346024,0.00962,82961.0,82960.0,0.4813496]
[1741554346816,0.01310453,82986.0,82973.0,0.1205307]
[1741554347016,0.1024,82978.0,82973.0,0.1205307]
[1741554347216,0.12070999,82974.0,82973.0,0.1205307]
[1741554348826,0.09268069,82974.0,82973.0,0.1205307]
[1741554349028,0.00018069,82974.0,82973.0,0.49347657]
[1741554349228,0.00018069,82974.0,82973.0,0.69307657]
[1741554350325,0.12070999,82974.0,82973.0,0.69307657]
[1741554350530,0.00018069,82974.0,82973.0,0.69307657]
[1741554352730,0.12070999,82974.0,82973.0,0.69307657]
[1741554353525,0.30320999,82974.0,82973.0,0.69307657]
[1741554353737,0.18268069,82974.0,82973.0,0.69307657]
[1741554354431,0.30320999,82974.0,82973.0,0.69307657]
[1741554354829,0.30320999,82974.0,82973.0,0.58947657]
[1741554355030,0.30320999,82974.0,82973.0,0.49347657]
[1741554355230,0.30320999,82974.0,82973.0,0.4813307]
[1741554355427,0.30320999,82974.0,82973.0,0.1205307]
[1741554356128,0.18268069,82974.0,82973.0,0.1205307]
[1741554356325,0.18268069,82974.0,82973.0,0.5674307]
[1741554358735,0.09168069,82974.0,82973.0,0.5674307]
[1741554359032,0.00018069,82974.0,82973.0,0.6582307]
[1741554360131,0.00018069,82974.0,82973.0,0.3608]
[1741554360132,0.12070999,82974.0,82973.0,0.3608]
[1741554360332,0.29710999,82974.0,82973.0,0.2911107]
[1741554360936,0.29710999,82974.0,82973.0,0.3792107]
[1741554361257,0.1205394,82967.0,82966.0,0.3608]
[1741554361935,0.1205394,82967.0,82966.0,0.4813409]
[1741554363142,0.1684,82969.0,82966.0,0.3608]
[1741554363439,0.1684,82969.0,82968.0,0.120538]
[1741554363835,0.2889365,82969.0,82968.0,0.120538]
[1741554364037,0.1684,82969.0,82968.0,0.207238]
[1741554364237,0.2889365,82969.0,82968.0,0.207238]
[1741554364829,0.2889365,82969.0,82966.0,0.4825796]
[1741554364830,0.1684,82969.0,82966.0,0.36204]
[1741554365037,0.1205394,82967.0,82966.0,0.3608]
[1741554365240,0.1205394,82967.0,82966.0,0.4813409]
[1741554365439,0.1205394,82967.0,82966.0,0.3608]
[1741554365739,0.1205394,82967.0,82966.0,0.4813409]
[1741554366140,0.13232026,82967.0,82966.0,0.3608]
[1741554366438,0.1205394,82967.0,82966.0,0.3608]
[1741554366638,0.1205394,82967.0,82966.0,0.1205409]
[1741554367235,0.1205409,82966.0,82965.0,0.04821]
[1741554367441,0.1205409,82966.0,82965.0,0.1687523]
[1741554367642,0.2954409,82966.0,82965.0,0.10088452]
[1741554372146,0.36112588,82967.0,82966.0,0.1205409]
[1741554372332,0.36048588,82967.0,82966.0,0.2950409]
[1741554373447,0.1205225,82979.0,82966.0,0.2950409]
[1741554373448,0.03667053,82975.0,82974.0,0.1205293]
[1741554373640,0.03667053,82975.0,82974.0,0.5662093]
[1741554373830,0.0841,82987.0,82974.0,0.44568]
[1741554374030,0.0854,82987.0,82986.0,0.4813118]
[1741554374235,0.1205039,82992.0,82986.0,0.5661918]
[1741554374435,0.1205039,82992.0,82991.0,0.1205046]
[1741554374638,0.09312674,82998.0,82991.0,0.1205046]
[1741554374639,0.00018081,82997.0,82995.0,0.1204988]
[1741554374837,0.11100114,83000.0,82997.0,0.0602473]
[1741554374838,0.04690537,83000.0,82997.0,0.0602473]
[1741554375134,0.04690537,83000.0,82999.0,0.481293]
[1741554375446,0.16739687,83000.0,82999.0,0.481293]
[1741554375648,0.16739687,83000.0,82999.0,0.645793]
[1741554375849,0.04690537,83000.0,82999.0,0.645793]
[1741554376050,0.1204973,82996.0,82995.0,0.08488]
[1741554376440,0.0602521,82992.0,82988.0,0.2053883]
[1741554376743,0.1205075,82989.0,82988.0,0.205387]
[1741554376944,0.1205075,82989.0,82988.0,0.08488]
[1741554377444,0.0835,82991.0,82990.0,0.120506]
[1741554378038,0.0835,82991.0,82990.0,0.289006]
[1741554379151,0.2040046,82991.0,82990.0,0.289006]
[1741554380647,0.2040046,82991.0,82990.0,0.202706]
[1741554381047,0.0835,82991.0,82990.0,0.202706]
[1741554381454,0.0835,82991.0,82990.0,0.563506]
[1741554381858,0.0887,82998.0,82997.0,0.1204959]
[1741554382051,0.2091944,82998.0,82997.0,0.1204959]
[1741554384849,0.0887,82998.0,82997.0,0.1204959]
[1741554385055,0.0887,82998.0,82997.0,0.4812959]
[1741554385759,0.00018081,83008.0,83007.0,0.1204814]
[1741554385961,0.12066071,83008.0,83007.0,0.1204814]
[1741554386250,0.12066071,83008.0,83007.0,0.2009814]
[1741554386642,0.00018081,83008.0,83006.0,0.08484]
[1741554386949,0.1204915,83000.0,82999.0,0.08502081]
[1741554387255,0.4812915,83000.0,82999.0,0.08502081]
[1741554387753,0.4812915,83000.0,82999.0,0.00018081]
[1741554388055,0.5585915,83000.0,82999.0,0.00018081]
[1741554389156,0.6358915,83000.0,82999.0,0.00018081]
[1741554389360,0.6358915,83000.0,82999.0,0.12067381]
[1741554390757,0.6358915,83000.0,82999.0,0.00018081]
[1741554392560,0.1205046,82991.0,82973.0,0.3608]
[1741554392862,0.1205322,82972.0,82958.0,0.00124]
[1741554393046,0.4813322,82972.0,82965.0,0.0120887]
[1741554393559,0.4813322,82972.0,82965.0,0.1205419]
[1741554394064,0.6391322,82972.0,82963.0,0.00018081]
[1741554394253,0.1205438,82964.0,82963.0,0.00018081]
[1741554395056,0.4813438,82964.0,82963.0,0.00018081]
[1741554395765,0.4813438,82964.0,82963.0,0.12072611]
[1741554396352,0.4813438,82964.0,82963.0,0.00018081]
[1741554396662,0.4813438,82964.0,82963.0,0.12072611]
[1741554399465,0.4813438,82964.0,82963.0,0.00018081]
[1741554399668,0.4813438,82964.0,82963.0,0.12072611]
[1741554400053,0.4813438,82964.0,82963.0,0.00018081]
[1741554401257,0.4813438,82964.0,82954.0,0.06208677]
[1741554401258,0.3608,82964.0,82954.0,0.00180817]
[1741554401463,0.1205569,82955.0,82954.0,0.00180817]
[1741554402468,0.1205569,82955.0,82917.0,0.21356]
[1741554402469,0.0602987,82931.0,82923.0,0.08488]
[1741554402772,0.0602987,82931.0,82918.0,0.2177]
[1741554402773,0.2743932,82930.0,82929.0,0.2012932]
[1741554403072,0.1538,82930.0,82929.0,0.2012932]
[1741554403258,0.1538,82930.0,82929.0,0.2772932]
[1741554403569,0.06047391,82935.0,82929.0,0.2772932]
[1741554403570,0.00018081,82935.0,82932.0,0.1205874]
[1741554403775,0.06047451,82935.0,82934.0,0.1205874]
[1741554403971,0.06047451,82935.0,82934.0,0.076]
[1741554404272,0.120599,82926.0,82925.0,0.08488]
[1741554404474,0.1205947,82933.0,82932.0,0.1205889]
[1741554404974,0.2803947,82933.0,82932.0,0.1205889]
[1741554405381,0.2803947,82933.0,82932.0,0.2786889]
[1741554407081,0.1598,82933.0,82932.0,0.2786889]
[1741554407285,0.2001889,82933.0,82932.0,0.2786889]
[1741554407776,0.00018081,82935.0,82932.0,0.3992778]
[1741554407970,0.00018081,82935.0,82934.0,0.4813874]
[1741554408375,0.12076681,82935.0,82934.0,0.5133]
[1741554408580,0.12076681,82935.0,82934.0,0.6338874]
[1741554408984,0.12076681,82935.0,82934.0,0.5133]
[1741554409184,0.12076681,82935.0,82934.0,0.1525]
[1741554410370,0.12076681,82935.0,82934.0,0.2730874]
[1741554410577,0.00018081,82935.0,82934.0,0.2730874]
[1741554411578,0.12076681,82935.0,82934.0,0.1525]
[1741554412284,0.48156681,82935.0,82934.0,0.1525]
[1741554412474,0.27566681,82935.0,82934.0,0.1525]
[1741554412780,0.1205903,82932.0,82925.0,0.1205996]
[1741554412985,0.1205932,82930.0,82929.0,0.0812]
[1741554413586,0.2754932,82930.0,82929.0,0.2017947]
[1741554413988,0.2754932,82930.0,82929.0,0.2818947]
[1741554414182,0.2754932,82930.0,82929.0,0.1613]
[1741554414580,0.2754932,82930.0,82929.0,0.0801]
[1741554414777,0.2754932,82930.0,82927.0,0.3608]
[1741554414985,0.1808999,82927.0,82926.0,0.1205981]
[1741554415889,0.1808999,82927.0,82926.0,0.2411964]
[1741554416791,0.1808999,82927.0,82926.0,0.3944964]
[1741554417180,0.1808999,82927.0,82926.0,0.2738981]
[1741554418889,0.1808999,82927.0,82926.0,0.273899]
[1741554421092,0.0602994,82927.0,82926.0,0.273899]
[1741554422096,0.0602994,82927.0,82926.0,0.1533]
[1741554422286,0.0602994,82927.0,82926.0,0.273899]
[1741554423290,0.0602994,82927.0,82916.0,0.00180909]
[1741554423291,0.00905708,82927.0,82916.0,0.00180909]
[1741554423482,0.3608,82928.0,82913.0,0.1557]
[1741554423483,0.4814121,82917.0,82913.0,0.1557]
[1741554423686,0.1206165,82914.0,82913.0,0.2763176]
[1741554424179,0.1206238,82909.0,82897.0,0.1206406]
[1741554424381,0.0603158,82904.0,82891.0,0.08612]
[1741554424587,0.120647,82893.0,82892.0,0.12245761]
[1741554424790,0.2338,82903.0,82892.0,0.00180961]
[1741554425096,0.1809695,82895.0,82894.0,0.0603208]
[1741554425495,0.0788,82903.0,82894.0,0.0603208]
[1741554425789,0.1206645,82881.0,82876.0,0.0603356]
[1741554425995,0.1206645,82881.0,82880.0,0.37295073]
[1741554426291,0.1206711,82881.0,82880.0,0.0603326]
[1741554426492,0.1810049,82881.0,82880.0,0.0603326]
[1741554426789,0.0752,82882.0,82881.0,0.1206645]
[1741554426991,0.0752,82882.0,82881.0,0.1982645]
[1741554427492,0.2050261,82882.0,82881.0,0.1982645]
[1741554428894,0.1958631,82882.0,82881.0,0.1982645]
[1741554429889,0.1206589,82885.0,82884.0,0.1206602]
[1741554430386,0.1206631,82883.0,82882.0,0.1206624]
[1741554431288,0.1944631,82883.0,82882.0,0.1998624]
[1741554432196,0.1944631,82883.0,82882.0,0.19997603]
[1741554433394,0.1944631,82883.0,82882.0,0.07931363]
[1741554433695,0.1944631,82883.0,82882.0,0.00011363]
[1741554433889,0.1944631,82883.0,82882.0,0.12077673]
[1741554434092,0.1944631,82883.0,82882.0,0.00011363]
[1741554435095,0.1944631,82883.0,82869.0,0.0603408]
[1741554435096,0.0738,82883.0,82856.0,0.36348]
[1741554435293,0.1206893,82864.0,82860.0,0.1206943]
[1741554435494,0.1206893,82864.0,82861.0,0.1206925]
[1741554435696,0.1206893,82864.0,82860.0,0.1330513]
[1741554435891,0.1206893,82864.0,82863.0,0.12250078]
[1741554436092,0.1206893,82864.0,82863.0,0.00181008]
[1741554436398,0.1206936,82861.0,82860.0,0.03996]
[1741554438294,0.1206936,82861.0,82860.0,1e-07]
[1741554438495,0.15,82861.0,82836.0,0.0748]
[1741554438796,0.0603599,82843.0,82842.0,0.1207213]
[1741554439202,0.1511,82843.0,82841.0,0.0748]
[1741554439398,0.1207213,82842.0,82841.0,0.0748]
[1741554439788,0.2747213,82842.0,82841.0,0.0748]
[1741554439991,0.154,82842.0,82823.0,0.3608]
[1741554440189,0.120733,82834.0,82833.0,0.0748]
[1741554440402,0.120733,82834.0,82833.0,0.1955344]
[1741554440710,0.1207292,82837.0,82833.0,0.0748]
[1741554440899,0.120733,82834.0,82833.0,0.1955316]
[1741554441399,0.120733,82834.0,82833.0,0.0748]
[1741554442201,0.481533,82834.0,82833.0,0.0748]
[1741554442598,0.120733,82834.0,82833.0,0.0748]
[1741554442799,0.3608,82854.0,82833.0,0.0748]
[1741554442995,0.0603584,82846.0,82834.0,0.0886]
[1741554443191,0.0603606,82842.0,82835.0,0.0603651]
[1741554443392,0.0603629,82839.0,82838.0,0.1207232]
[1741554443598,0.0603629,82839.0,82838.0,0.1944232]
[1741554443798,0.0603629,82839.0,82838.0,0.0737]
[1741554444605,0.3608,82844.0,82843.0,0.1207199]
[1741554444806,0.1207228,82842.0,82841.0,0.1207219]
[1741554445010,0.1207228,82842.0,82841.0,0.0674]
[1741554445208,0.1207228,82842.0,82841.0,0.1881228]
[1741554445505,0.1374,82842.0,82841.0,0.1881228]
[1741554445897,0.01124049,82851.0,82850.0,0.1207097]
[1741554446101,0.19884869,82851.0,82848.0,0.0603556]
[1741554446300,0.1207097,82850.0,82849.0,0.0674]
[1741554446602,0.07814049,82851.0,82849.0,0.1881111]
[1741554446799,0.0688923,82851.0,82850.0,0.1207097]
[1741554447001,0.1207097,82850.0,82849.0,0.1881111]
[1741554447302,0.1207097,82850.0,82849.0,0.0674]
[1741554447303,0.1912097,82850.0,82849.0,0.0674]
[1741554447515,0.1912097,82850.0,82849.0,0.1881111]
[1741554448405,0.1912097,82850.0,82849.0,0.0674]
[1741554448609,0.0705,82850.0,82849.0,0.1881111]
[1741554449110,0.1912097,82850.0,82849.0,0.1881111]
[1741554449705,0.0019923,82851.0,82850.0,0.1207097]
[1741554449907,0.0019923,82851.0,82850.0,0.5449097]
[1741554450106,0.0019923,82851.0,82850.0,0.6107097]
[1741554452310,0.1227005,82851.0,82850.0,0.6107097]
[1741554452509,0.0019923,82851.0,82850.0,0.6107097]
[1741554453016,0.0019923,82851.0,82850.0,0.2499097]
[1741554453017,0.1227005,82851.0,82850.0,0.2499097]
[1741554453406,0.1227005,82851.0,82850.0,0.0634]
[1741554453598,0.1227005,82851.0,82850.0,0.2720697]
[1741554453808,0.2594005,82851.0,82850.0,0.2720697]
[1741554455608,0.25758925,82851.0,82850.0,0.2720697]
[1741554456409,0.25758925,82851.0,82850.0,0.08796]
[1741554456610,0.120717,82845.0,82844.0,0.0651]
[1741554457717,0.254917,82845.0,82844.0,0.0651]
[1741554457906,0.254917,82845.0,82844.0,0.2519184]
[1741554458103,0.254917,82845.0,82844.0,0.1312]
[1741554459719,0.254917,82845.0,82844.0,0.2519184]
[1741554460918,0.1342,82845.0,82844.0,0.2519184]
[1741554461418,0.254917,82845.0,82844.0,0.2519184]
[1741554461817,0.00018105,82851.0,82850.0,0.1207097]
[1741554462024,0.12088925,82851.0,82850.0,0.1207097]
[1741554462822,0.19108925,82851.0,82850.0,0.1207097]
[1741554463024,0.1207111,82849.0,82848.0,0.2528112]
[1741554464015,0.00018105,82851.0,82850.0,0.1207097]
[1741554464419,0.00018105,82851.0,82850.0,0.2529097]
[1741554464616,0.12088925,82851.0,82850.0,0.2529097]
[1741554465511,0.06528105,82851.0,82850.0,0.2529097]
[1741554465723,0.00018105,82851.0,82850.0,0.2529097]
[1741554466222,0.00018105,82851.0,82850.0,0.6137097]
[1741554468218,0.12088925,82851.0,82850.0,0.6137097]
[1741554468428,0.12088925,82851.0,82850.0,0.2529097]
[1741554469225,0.25518925,82851.0,82850.0,0.2529097]
[1741554472917,0.06418105,82851.0,82850.0,0.2529097]
[1741554473117,0.0603368,82875.0,82864.0,0.1206893]
[1741554473316,0.1812818,82870.0,82869.0,0.120682]
[1741554474418,0.178,82870.0,82867.0,0.0603417]
[1741554474619,0.1206834,82868.0,82867.0,0.1810251]
[1741554475827,0.1206834,82868.0,82867.0,0.0603417]
[1741554476726,0.0603424,82868.0,82864.0,0.08612]
[1741554477025,0.4814878,82865.0,82864.0,0.08612]
[1741554477826,0.4814878,82865.0,82864.0,0.2068093]
[1741554479325,0.1206878,82865.0,82864.0,0.2068093]
[1741554479716,0.2354878,82865.0,82864.0,0.2068093]
[1741554480327,0.1148,82865.0,82864.0,0.2068093]
[1741554480820,0.2354878,82865.0,82864.0,0.2068093]
[1741554481024,0.2354878,82865.0,82864.0,0.08612]
[1741554481216,0.2354878,82865.0,82864.0,0.2068093]
[1741554481823,0.2354878,82865.0,82864.0,0.2675093]
[1741554482127,0.2354878,82865.0,82864.0,0.3286093]
[1741554482128,0.1148,82865.0,82864.0,0.3286093]
[1741554482323,0.0606,82870.0,82864.0,0.6894093]
[1741554482624,0.01132448,82880.0,82877.0,0.1206703]
[1741554482825,0.12988095,82883.0,82877.0,0.1206703]
[1741554482826,0.0094574,82878.0,82877.0,0.1206703]
[1741554483024,0.00018105,82878.0,82877.0,0.1206703]
[1741554483828,0.00018105,82878.0,82877.0,0.13261978]
[1741554484517,0.00018105,82878.0,82877.0,0.24741978]
[1741554485231,0.12084995,82878.0,82877.0,0.24741978]
[1741554485723,0.1206733,82875.0,82874.0,0.1206743]
[1741554485933,0.1206733,82875.0,82874.0,0.1771743]
[1741554486228,0.1206733,82875.0,82872.0,0.31510232]
[1741554486229,0.1206762,82873.0,82872.0,0.08536]
[1741554486628,0.1206743,82875.0,82874.0,0.1206733]
[1741554486832,0.2370743,82875.0,82874.0,0.1206733]
[1741554487219,0.1164,82875.0,82874.0,0.2346733]
[1741554487424,0.00018105,82878.0,82877.0,0.1206703]
[1741554487630,0.12084995,82878.0,82877.0,0.1206703]
[1741554490429,0.12084995,82878.0,82877.0,0.2057103]
[1741554491324,0.00018105,82878.0,82877.0,0.2057103]
[1741554493329,0.12084995,82878.0,82877.0,0.2057103]
[1741554493635,0.00018105,82878.0,82877.0,0.2057103]
[1741554495028,0.11558105,82878.0,82877.0,0.2057103]
[1741554495229,0.23624995,82878.0,82877.0,0.2057103]
[1741554495639,0.11558105,82878.0,82877.0,0.2057103]
[1741554495834,5e-08,82878.0,82877.0,0.5665103]
[1741554496434,0.12066895,82878.0,82877.0,0.5665103]
[1741554497031,5e-08,82878.0,82877.0,0.5665103]
[1741554497242,0.11170005,82878.0,82877.0,0.5665103]
[1741554499542,5e-08,82878.0,82877.0,0.5665103]
[1741554504959,0.12066895,82878.0,82877.0,0.4814703]
[1741554505254,5e-08,82878.0,82877.0,0.5665103]
[1741554508246,5e-08,82878.0,82877.0,0.9273103]
[1741554510362,5e-08,82878.0,82877.0,0.5665103]
[1741554510657,0.10840005,82878.0,82877.0,0.5665103]
[1741554511159,0.10840005,82878.0,82877.0,0.2057103]
[1741554511962,5e-08,82878.0,82877.0,0.2057103]
[1741554515057,5e-08,82878.0,82877.0,0.1206703]
[1741554515261,5e-08,82878.0,82877.0,0.2056703]
[1741554516256,5e-08,82878.0,82875.0,0.2177]
[1741554516457,0.1206718,82876.0,82875.0,0.3383719]
[1741554516660,0.1206718,82876.0,82875.0,0.4233719]
[1741554518364,0.1206718,82876.0,82875.0,0.2177]
[1741554518559,0.1206718,82876.0,82861.0,0.00018105]
[1741554518560,0.3608,82876.0,82861.0,0.00018105]
[1741554518761,0.1206907,82863.0,82862.0,0.085]
[1741554518961,0.1206922,82862.0,82861.0,0.00018105]
[1741554519157,0.2328922,82862.0,82861.0,0.08518105]
[1741554519369,0.2328922,82862.0,82861.0,0.20587465]
[1741554520577,0.1122,82862.0,82861.0,0.20587465]
[1741554520766,0.1122,82862.0,82861.0,0.31947465]
[1741554521161,0.2328922,82862.0,82861.0,0.20587465]
[1741554521373,0.2899922,82862.0,82861.0,0.20587465]
[1741554522667,0.1693,82862.0,82861.0,0.20587465]
[1741554522866,0.1693,82862.0,82861.0,0.31587465]